[Event "Late-Titled-Tuesday-Blitz-May-07-2024"]
[Site "Chess.com"]
[Date "2024.05.07"]
[Round "3"]
[White "Cambek64"]
[Black "Harsha_Bharathakoti"]
[Result "0-1"]
[WhiteElo "2522"]
[BlackElo "2946"]
[TimeControl "180+1"]
[EndTime "14:27:36 PDT"]
[Termination "Harsha_Bharathakoti won by resignation"]

1. e3 {[%clk 0:02:57.9]} 1... d5 {[%clk 0:02:59.1]} 2. d4 {[%clk 0:02:56.3]}
2... Nf6 {[%clk 0:02:58.9]} 3. c4 {[%clk 0:02:56.5]} 3... e6 {[%clk 0:02:59.3]}
4. Nc3 {[%clk 0:02:56.1]} 4... c6 {[%clk 0:02:55.7]} 5. Nf3 {[%clk 0:02:54.8]}
5... a6 {[%clk 0:02:56.4]} 6. Qc2 {[%clk 0:02:53.8]} 6... Nbd7 {[%clk
0:02:48.9]} 7. b3 {[%clk 0:02:49.4]} 7... Bd6 {[%clk 0:02:46.7]} 8. Bb2 {[%clk
0:02:43.5]} 8... O-O {[%clk 0:02:46.7]} 9. Be2 {[%clk 0:02:38.3]} 9... b6 {[%clk
0:02:37.4]} 10. O-O {[%clk 0:02:38.4]} 10... Bb7 {[%clk 0:02:38]} 11. e4 {[%clk
0:02:38.2]} 11... dxe4 {[%clk 0:02:36.1]} 12. Nxe4 {[%clk 0:02:38.7]} 12... Nxe4
{[%clk 0:02:36.4]} 13. Qxe4 {[%clk 0:02:39]} 13... Nf6 {[%clk 0:02:35.4]} 14.
Qc2 {[%clk 0:02:30.9]} 14... c5 {[%clk 0:02:33]} 15. dxc5 {[%clk 0:02:29.4]}
15... Bxc5 {[%clk 0:02:33.9]} 16. Rad1 {[%clk 0:02:28.5]} 16... Qe7 {[%clk
0:02:33.8]} 17. Ne5 {[%clk 0:02:26.8]} 17... Rfd8 {[%clk 0:02:31.6]} 18. Rxd8+
{[%clk 0:02:21.3]} 18... Rxd8 {[%clk 0:02:31.2]} 19. Rd1 {[%clk 0:02:21.5]}
19... Ne4 {[%clk 0:02:12]} 20. Nd3 {[%clk 0:02:19]} 20... Bd6 {[%clk 0:02:11]}
21. Bf3 {[%clk 0:02:11]} 21... Qc7 {[%clk 0:02:11]} 22. g3 {[%clk 0:02:10.1]}
22... Ng5 {[%clk 0:02:07.6]} 23. Bxb7 {[%clk 0:01:47.2]} 23... Qxb7 {[%clk
0:02:08.5]} 24. Ne1 {[%clk 0:01:38.4]} 24... Nh3+ {[%clk 0:01:56.1]} 25. Kf1
{[%clk 0:01:38.7]} 25... Qh1+ {[%clk 0:01:56.4]} 26. Ke2 {[%clk 0:01:39.3]}
26... Ng1+ {[%clk 0:01:40.2]} 27. Kf1 {[%clk 0:01:20.2]} 27... Nh3+ {[%clk
0:01:29.7]} 28. Ke2 {[%clk 0:01:20.3]} 28... Qxh2 {[%clk 0:01:30.6]} 29. Bd4
{[%clk 0:01:07.4]} 29... Bxg3 {[%clk 0:01:10.1]} 30. Bxb6 {[%clk 0:00:38.9]}
30... Nf4+ {[%clk 0:01:03.2]} 31. Kf3 {[%clk 0:00:36.7]} 31... Rxd1 {[%clk
0:00:51]} 32. Qxd1 {[%clk 0:00:31.7]} 32... Qh5+ {[%clk 0:00:51.3]} 33. Kxg3
{[%clk 0:00:31.9]} 33... Qxd1 {[%clk 0:00:52.1]} 34. Kxf4 {[%clk 0:00:32.2]}
34... Qxe1 {[%clk 0:00:52.4]} 35. Be3 {[%clk 0:00:30.8]} 35... f6 {[%clk
0:00:51.4]} 36. Ke4 {[%clk 0:00:28.8]} 36... Qe2 {[%clk 0:00:49.8]} 37. Kd4
{[%clk 0:00:29]} 37... Qxa2 {[%clk 0:00:49]} 38. b4 {[%clk 0:00:28.4]} 38... e5+
{[%clk 0:00:48.7]} 39. Kc5 {[%clk 0:00:28.8]} 39... h5 {[%clk 0:00:49.4]} 40.
Kb6 {[%clk 0:00:28.5]} 40... Qxc4 {[%clk 0:00:49.2]} 0-1

[Event "Late-Titled-Tuesday-Blitz-May-07-2024"]
[Site "Chess.com"]
[Date "2024.05.07"]
[Round "3"]
[White "cycygogne"]
[Black "ExchangeAB"]
[Result "0-1"]
[WhiteElo "2154"]
[BlackElo "2425"]
[TimeControl "180+1"]
[EndTime "14:27:36 PDT"]
[Termination "ExchangeAB won by resignation"]

1. e4 {[%clk 0:03:00.9]} 1... c6 {[%clk 0:02:59.8]} 2. d4 {[%clk 0:03:00.1]}
2... d5 {[%clk 0:03:00.7]} 3. Nc3 {[%clk 0:02:59.6]} 3... dxe4 {[%clk
0:03:00.9]} 4. Nxe4 {[%clk 0:03:00.5]} 4... Nf6 {[%clk 0:03:01.5]} 5. Nxf6+
{[%clk 0:02:59.9]} 5... exf6 {[%clk 0:03:02.4]} 6. c3 {[%clk 0:02:57.1]} 6...
Bd6 {[%clk 0:03:02.8]} 7. Bd3 {[%clk 0:02:57]} 7... O-O {[%clk 0:03:03.5]} 8.
Qc2 {[%clk 0:02:56.7]} 8... Re8+ {[%clk 0:03:04.2]} 9. Ne2 {[%clk 0:02:57]} 9...
h6 {[%clk 0:03:04.9]} 10. O-O {[%clk 0:02:56.1]} 10... Nd7 {[%clk 0:03:03.5]}
11. Bd2 {[%clk 0:02:54.4]} 11... Nf8 {[%clk 0:03:03.3]} 12. Rae1 {[%clk
0:02:54.2]} 12... Bd7 {[%clk 0:03:03.2]} 13. f4 {[%clk 0:02:53.7]} 13... Qc7
{[%clk 0:03:01.1]} 14. c4 {[%clk 0:02:42.6]} 14... c5 {[%clk 0:02:59.2]} 15. d5
{[%clk 0:02:41]} 15... a6 {[%clk 0:02:55.7]} 16. b3 {[%clk 0:02:37.4]} 16... b5
{[%clk 0:02:54.8]} 17. Qd1 {[%clk 0:02:26.8]} 17... Bg4 {[%clk 0:02:48.6]} 18.
h3 {[%clk 0:02:24.3]} 18... Bd7 {[%clk 0:02:33.1]} 19. Ng3 {[%clk 0:02:09.9]}
19... Ng6 {[%clk 0:02:29.6]} 20. Nh5 {[%clk 0:02:06.9]} 20... Qb7 {[%clk
0:02:15.4]} 21. Qc2 {[%clk 0:02:03.5]} 21... Nf8 {[%clk 0:02:12.8]} 22. Bc1
{[%clk 0:01:55.7]} 22... a5 {[%clk 0:02:11.2]} 23. Bb2 {[%clk 0:01:52.7]} 23...
Rxe1 {[%clk 0:01:54.3]} 24. Rxe1 {[%clk 0:01:51.9]} 24... bxc4 {[%clk
0:01:25.5]} 25. bxc4 {[%clk 0:01:51.3]} 25... Qb4 {[%clk 0:01:14.4]} 26. Re3
{[%clk 0:01:47]} 26... Ba4 {[%clk 0:01:09.5]} 27. Qf2 {[%clk 0:01:35.3]} 27...
Ng6 {[%clk 0:00:57.8]} 28. Rg3 {[%clk 0:01:05.9]} 28... Rb8 {[%clk 0:00:53.1]}
29. Bxf6 {[%clk 0:01:02.6]} 29... gxf6 {[%clk 0:00:45.9]} 30. Nxf6+ {[%clk
0:01:00.8]} 30... Kg7 {[%clk 0:00:44.4]} 31. Nh5+ {[%clk 0:00:59]} 31... Kf8
{[%clk 0:00:39.4]} 32. Bxg6 {[%clk 0:00:58.5]} 32... fxg6 {[%clk 0:00:34.2]} 33.
Nf6 {[%clk 0:00:53.5]} 33... Qb1+ {[%clk 0:00:28.2]} 34. Kh2 {[%clk 0:00:53.7]}
34... Qf5 {[%clk 0:00:26.9]} 35. Ng4 {[%clk 0:00:49.6]} 35... h5 {[%clk
0:00:25.8]} 36. Nh6 {[%clk 0:00:32.3]} 36... Qxf4 {[%clk 0:00:25.1]} 0-1

[Event "Late-Titled-Tuesday-Blitz-May-07-2024"]
[Site "Chess.com"]
[Date "2024.05.07"]
[Round "3"]
[White "Zhigalko_Sergei"]
[Black "ReadySkate"]
[Result "1-0"]
[WhiteElo "2891"]
[BlackElo "2699"]
[TimeControl "180+1"]
[EndTime "14:27:37 PDT"]
[Termination "Zhigalko_Sergei won by resignation"]

1. e4 {[%clk 0:03:00.9]} 1... c5 {[%clk 0:02:56.2]} 2. Nf3 {[%clk 0:03:01]} 2...
e6 {[%clk 0:02:56.2]} 3. c3 {[%clk 0:03:01.1]} 3... d5 {[%clk 0:02:56.1]} 4. e5
{[%clk 0:03:00.3]} 4... d4 {[%clk 0:02:55.9]} 5. Bd3 {[%clk 0:03:00.6]} 5... Nc6
{[%clk 0:02:55.4]} 6. O-O {[%clk 0:03:00.6]} 6... Nge7 {[%clk 0:02:56]} 7. Re1
{[%clk 0:03:00.9]} 7... Ng6 {[%clk 0:02:56.2]} 8. g3 {[%clk 0:03:01.3]} 8... Qc7
{[%clk 0:02:55]} 9. Qe2 {[%clk 0:03:01.3]} 9... Bd7 {[%clk 0:02:44]} 10. h4
{[%clk 0:02:59]} 10... O-O-O {[%clk 0:02:44.5]} 11. Na3 {[%clk 0:02:43.7]} 11...
a6 {[%clk 0:02:42.6]} 12. Nc4 {[%clk 0:02:29]} 12... f6 {[%clk 0:02:40.4]} 13.
Bxg6 {[%clk 0:01:51]} 13... hxg6 {[%clk 0:02:39.2]} 14. d3 {[%clk 0:01:51.4]}
14... g5 {[%clk 0:02:20.1]} 15. exf6 {[%clk 0:01:30.3]} 15... gxf6 {[%clk
0:02:11.2]} 16. hxg5 {[%clk 0:01:30.7]} 16... e5 {[%clk 0:02:07.8]} 17. gxf6
{[%clk 0:01:25.5]} 17... Bf5 {[%clk 0:02:00]} 18. Ng5 {[%clk 0:01:23.5]} 18...
Bh6 {[%clk 0:01:48.3]} 19. Qf3 {[%clk 0:01:18.8]} 19... Bd7 {[%clk 0:00:52.6]}
20. Nf7 {[%clk 0:01:11.6]} 20... Bxc1 {[%clk 0:00:50.8]} 21. Raxc1 {[%clk
0:01:12.1]} 21... Be6 {[%clk 0:00:42.9]} 22. Nxd8 {[%clk 0:00:48.9]} 22... Qxd8
{[%clk 0:00:41.6]} 23. Nxe5 {[%clk 0:00:40.2]} 23... Bd5 {[%clk 0:00:39.1]} 24.
Qf5+ {[%clk 0:00:39.3]} 24... Kc7 {[%clk 0:00:38.3]} 25. Re4 {[%clk 0:00:35.9]}
25... Bxe4 {[%clk 0:00:28.3]} 26. dxe4 {[%clk 0:00:33.9]} 26... d3 {[%clk
0:00:28.3]} 27. Nf7 {[%clk 0:00:28.3]} 27... d2 {[%clk 0:00:27.7]} 28. Rd1
{[%clk 0:00:27.6]} 28... Qd3 {[%clk 0:00:26.9]} 29. Qf4+ {[%clk 0:00:25.5]}
29... Kb6 {[%clk 0:00:26.5]} 30. Nxh8 {[%clk 0:00:25.5]} 1-0

[Event "Late-Titled-Tuesday-Blitz-May-07-2024"]
[Site "Chess.com"]
[Date "2024.05.07"]
[Round "3"]
[White "Alexei_Gubajdullin"]
[Black "nitpicker"]
[Result "1/2-1/2"]
[WhiteElo "2554"]
[BlackElo "2277"]
[TimeControl "180+1"]
[EndTime "14:27:41 PDT"]
[Termination "Game drawn by repetition"]

1. Nf3 {[%clk 0:02:59.2]} 1... Nf6 {[%clk 0:02:57.7]} 2. g3 {[%clk 0:02:58.8]}
2... d5 {[%clk 0:02:54.6]} 3. Bg2 {[%clk 0:02:58.9]} 3... e6 {[%clk 0:02:54.4]}
4. O-O {[%clk 0:02:59.3]} 4... Be7 {[%clk 0:02:54.5]} 5. d3 {[%clk 0:02:59.4]}
5... b6 {[%clk 0:02:51.7]} 6. Nbd2 {[%clk 0:02:58]} 6... Bb7 {[%clk 0:02:51.6]}
7. e4 {[%clk 0:02:57.8]} 7... c5 {[%clk 0:02:43.4]} 8. e5 {[%clk 0:02:57.5]}
8... Nfd7 {[%clk 0:02:42.6]} 9. Re1 {[%clk 0:02:57.2]} 9... h6 {[%clk
0:02:42.6]} 10. h4 {[%clk 0:02:55.4]} 10... g5 {[%clk 0:02:36.3]} 11. hxg5
{[%clk 0:02:53.4]} 11... hxg5 {[%clk 0:02:37.2]} 12. Nh2 {[%clk 0:02:53.6]}
12... Qc7 {[%clk 0:02:34.1]} 13. Ng4 {[%clk 0:02:52.9]} 13... Nc6 {[%clk
0:02:30.9]} 14. Nf3 {[%clk 0:02:51.3]} 14... O-O-O {[%clk 0:02:24.9]} 15. Bxg5
{[%clk 0:02:50.9]} 15... Bxg5 {[%clk 0:02:15.3]} 16. Nxg5 {[%clk 0:02:50.5]}
16... Ndxe5 {[%clk 0:02:15.9]} 17. Nxe5 {[%clk 0:02:46.3]} 17... Nxe5 {[%clk
0:02:16]} 18. Qe2 {[%clk 0:02:44.3]} 18... Nc6 {[%clk 0:01:49.7]} 19. c3 {[%clk
0:02:43.5]} 19... Rdg8 {[%clk 0:01:46.1]} 20. f4 {[%clk 0:02:36.1]} 20... e5
{[%clk 0:01:41.4]} 21. Bxd5 {[%clk 0:02:31.2]} 21... exf4 {[%clk 0:01:38.4]} 22.
Qg4+ {[%clk 0:02:14.9]} 22... Kb8 {[%clk 0:01:21.5]} 23. Qxf4 {[%clk 0:02:10.2]}
23... Qxf4 {[%clk 0:01:12]} 24. gxf4 {[%clk 0:02:10]} 24... f6 {[%clk
0:00:57.7]} 25. Bxg8 {[%clk 0:02:08.9]} 25... Rxg8 {[%clk 0:00:57.8]} 26. Kf2
{[%clk 0:02:03.6]} 26... fxg5 {[%clk 0:00:57.6]} 27. fxg5 {[%clk 0:02:03.3]}
27... Rxg5 {[%clk 0:00:56.7]} 28. Re8+ {[%clk 0:02:02.8]} 28... Kc7 {[%clk
0:00:55.7]} 29. Rg1 {[%clk 0:02:01.8]} 29... Rxg1 {[%clk 0:00:46.7]} 30. Kxg1
{[%clk 0:02:01.7]} 30... Ba6 {[%clk 0:00:46.9]} 31. Re3 {[%clk 0:01:58.6]} 31...
Kd6 {[%clk 0:00:47.1]} 32. Kf2 {[%clk 0:01:58.3]} 32... Ne5 {[%clk 0:00:46.2]}
33. Ke2 {[%clk 0:01:55.9]} 33... Nxd3 {[%clk 0:00:35]} 34. Rxd3+ {[%clk
0:01:54.4]} 34... Bxd3+ {[%clk 0:00:35.6]} 35. Kxd3 {[%clk 0:01:53.8]} 35... Kd5
{[%clk 0:00:36.2]} 36. a4 {[%clk 0:01:51]} 36... a5 {[%clk 0:00:34.5]} 37. b3
{[%clk 0:01:45.5]} 37... c4+ {[%clk 0:00:18.4]} 38. bxc4+ {[%clk 0:01:37.6]}
38... Kc5 {[%clk 0:00:18.2]} 39. Kd2 {[%clk 0:01:37.6]} 39... Kxc4 {[%clk
0:00:18.7]} 40. Kc2 {[%clk 0:01:37.7]} 40... Kc5 {[%clk 0:00:19]} 41. Kd3 {[%clk
0:01:32.7]} 41... Kd5 {[%clk 0:00:18.1]} 42. c4+ {[%clk 0:01:31.6]} 42... Kc6
{[%clk 0:00:16.3]} 43. Kd2 {[%clk 0:01:28.9]} 43... Kc5 {[%clk 0:00:16.2]} 44.
Kc3 {[%clk 0:01:28.5]} 44... Kc6 {[%clk 0:00:16]} 45. Kd4 {[%clk 0:01:25.2]}
45... Kd6 {[%clk 0:00:16.1]} 46. Kd3 {[%clk 0:01:24.6]} 46... Kc5 {[%clk
0:00:15.3]} 47. Kc3 {[%clk 0:01:24.4]} 47... Kc6 {[%clk 0:00:15.6]} 48. Kd4
{[%clk 0:01:18.2]} 48... Kd6 {[%clk 0:00:15.7]} 49. Kd3 {[%clk 0:01:15.8]} 49...
Kc5 {[%clk 0:00:14.6]} 50. Kc3 {[%clk 0:01:14.7]} 1/2-1/2

[Event "Late-Titled-Tuesday-Blitz-May-07-2024"]
[Site "Chess.com"]
[Date "2024.05.07"]
[Round "3"]
[White "martinmena"]
[Black "FredddieCroderg"]
[Result "0-1"]
[WhiteElo "2147"]
[BlackElo "2415"]
[TimeControl "180+1"]
[EndTime "14:27:41 PDT"]
[Termination "FredddieCroderg won by checkmate"]

1. c4 {[%clk 0:03:00.9]} 1... a5 {[%clk 0:02:58.5]} 2. Nc3 {[%clk 0:02:59.4]}
2... Na6 {[%clk 0:02:58.8]} 3. d4 {[%clk 0:02:58.2]} 3... d6 {[%clk 0:02:58.5]}
4. e4 {[%clk 0:02:58.4]} 4... e5 {[%clk 0:02:57.2]} 5. d5 {[%clk 0:02:57.1]}
5... Nc5 {[%clk 0:02:47.7]} 6. Be3 {[%clk 0:02:56.5]} 6... b6 {[%clk 0:02:46]}
7. Nf3 {[%clk 0:02:50.6]} 7... h5 {[%clk 0:02:44]} 8. Be2 {[%clk 0:02:49.7]}
8... h4 {[%clk 0:02:43.2]} 9. h3 {[%clk 0:02:43.4]} 9... f6 {[%clk 0:02:42.2]}
10. Nd2 {[%clk 0:02:39.3]} 10... g6 {[%clk 0:02:34.9]} 11. f4 {[%clk 0:02:37.6]}
11... Bh6 {[%clk 0:02:25.6]} 12. O-O {[%clk 0:02:35.1]} 12... exf4 {[%clk
0:02:21.3]} 13. Bxf4 {[%clk 0:02:34.4]} 13... Bxf4 {[%clk 0:02:21.3]} 14. Rxf4
{[%clk 0:02:35.2]} 14... Qe7 {[%clk 0:02:20.3]} 15. Bg4 {[%clk 0:02:29]} 15...
Nd3 {[%clk 0:02:13.6]} 16. Rf3 {[%clk 0:02:21.9]} 16... Ne5 {[%clk 0:02:12.8]}
17. Rf4 {[%clk 0:02:19.2]} 17... Bxg4 {[%clk 0:02:11.6]} 18. hxg4 {[%clk
0:02:19.2]} 18... h3 {[%clk 0:02:08.6]} 19. g3 {[%clk 0:02:15.6]} 19... h2+
{[%clk 0:01:56.2]} 20. Kh1 {[%clk 0:02:13.5]} 20... Qh7 {[%clk 0:01:53.1]} 21.
Nf3 {[%clk 0:02:10.9]} 21... g5 {[%clk 0:01:47]} 22. Nxe5 {[%clk 0:02:03.7]}
22... gxf4 {[%clk 0:01:44.7]} 23. Qa4+ {[%clk 0:02:02.5]} 23... Kf8 {[%clk
0:01:40]} 24. Nd7+ {[%clk 0:01:16.9]} 24... Ke7 {[%clk 0:01:18.6]} 25. Nxb6
{[%clk 0:00:56.1]} 25... cxb6 {[%clk 0:01:14.5]} 26. Qc6 {[%clk 0:00:55.3]}
26... Rd8 {[%clk 0:01:09.2]} 27. Re1 {[%clk 0:00:20.3]} 27... fxg3 {[%clk
0:01:05.6]} 28. Re2 {[%clk 0:00:05.6]} 28... Qh6 {[%clk 0:00:55.5]} 29. Nd1
{[%clk 0:00:02]} 29... Qf4 {[%clk 0:00:50.3]} 30. Re1 {[%clk 0:00:01.8]} 30...
Qf3# {[%clk 0:00:45.5]} 0-1

[Event "Late-Titled-Tuesday-Blitz-May-07-2024"]
[Site "Chess.com"]
[Date "2024.05.07"]
[Round "3"]
[White "grzechu96"]
[Black "Chessdreamer2020"]
[Result "1-0"]
[WhiteElo "2785"]
[BlackElo "2509"]
[TimeControl "180+1"]
[EndTime "14:27:44 PDT"]
[Termination "grzechu96 won by resignation"]

1. e4 {[%clk 0:03:00.9]} 1... d6 {[%clk 0:03:00.1]} 2. d4 {[%clk 0:03:00.9]}
2... Nf6 {[%clk 0:03:00.4]} 3. Nc3 {[%clk 0:03:01]} 3... c6 {[%clk 0:03:00.8]}
4. f4 {[%clk 0:02:55.9]} 4... d5 {[%clk 0:03:00.8]} 5. e5 {[%clk 0:02:53]} 5...
Ng8 {[%clk 0:03:01.2]} 6. Be3 {[%clk 0:02:32.7]} 6... g6 {[%clk 0:03:00.3]} 7.
h3 {[%clk 0:02:28.5]} 7... h5 {[%clk 0:02:59.5]} 8. g3 {[%clk 0:02:24.3]} 8...
Nh6 {[%clk 0:02:59.2]} 9. Nf3 {[%clk 0:02:24.2]} 9... Bf5 {[%clk 0:02:56]} 10.
Qd2 {[%clk 0:02:17.5]} 10... Nd7 {[%clk 0:02:45.6]} 11. O-O-O {[%clk 0:02:11]}
11... e6 {[%clk 0:02:45.1]} 12. Be2 {[%clk 0:02:08]} 12... c5 {[%clk 0:02:44]}
13. dxc5 {[%clk 0:01:58.6]} 13... Bxc5 {[%clk 0:02:38.1]} 14. Nd4 {[%clk
0:01:52.4]} 14... Bb4 {[%clk 0:02:32]} 15. a3 {[%clk 0:01:47.8]} 15... Ba5
{[%clk 0:02:29.2]} 16. b4 {[%clk 0:01:30.9]} 16... Bb6 {[%clk 0:02:23.7]} 17. g4
{[%clk 0:01:31.4]} 17... Be4 {[%clk 0:02:13.8]} 18. Nxe4 {[%clk 0:01:30]} 18...
dxe4 {[%clk 0:02:14.7]} 19. Bb5 {[%clk 0:01:14.1]} 19... a6 {[%clk 0:01:23.7]}
20. Nxe6 {[%clk 0:01:08.6]} 20... Bxe3 {[%clk 0:01:18.4]} 21. Qxe3 {[%clk
0:00:47.7]} 21... fxe6 {[%clk 0:01:16.6]} 22. Bxd7+ {[%clk 0:00:40.7]} 22...
Qxd7 {[%clk 0:00:49]} 23. Rxd7 {[%clk 0:00:41.6]} 23... Kxd7 {[%clk 0:00:49.9]}
24. Qxe4 {[%clk 0:00:33.1]} 24... Kc7 {[%clk 0:00:41.8]} 25. Qxg6 {[%clk
0:00:32.8]} 25... Rae8 {[%clk 0:00:38.7]} 26. Rd1 {[%clk 0:00:22.5]} 26... Re7
{[%clk 0:00:29.3]} 27. Qf6 {[%clk 0:00:22.6]} 1-0

[Event "Late-Titled-Tuesday-Blitz-May-07-2024"]
[Site "Chess.com"]
[Date "2024.05.07"]
[Round "3"]
[White "jup1978"]
[Black "LeninGuerra"]
[Result "1-0"]
[WhiteElo "2485"]
[BlackElo "2657"]
[TimeControl "180+1"]
[EndTime "14:27:44 PDT"]
[Termination "jup1978 won by checkmate"]

1. e4 {[%clk 0:03:00.9]} 1... c5 {[%clk 0:02:59.2]} 2. Nf3 {[%clk 0:03:00.3]}
2... e6 {[%clk 0:02:59.9]} 3. c3 {[%clk 0:02:59.1]} 3... Nc6 {[%clk 0:02:57.1]}
4. g3 {[%clk 0:02:46.7]} 4... g6 {[%clk 0:02:54.4]} 5. Bg2 {[%clk 0:02:46.2]}
5... Bg7 {[%clk 0:02:54]} 6. O-O {[%clk 0:02:46.6]} 6... Nge7 {[%clk 0:02:53.4]}
7. Re1 {[%clk 0:02:41.3]} 7... O-O {[%clk 0:02:52.5]} 8. d3 {[%clk 0:02:41.2]}
8... d5 {[%clk 0:02:52.5]} 9. Nbd2 {[%clk 0:02:36.8]} 9... b6 {[%clk 0:02:46.6]}
10. e5 {[%clk 0:02:33.9]} 10... Bb7 {[%clk 0:02:44]} 11. Nf1 {[%clk 0:02:33.6]}
11... h6 {[%clk 0:02:43.8]} 12. h4 {[%clk 0:02:30.9]} 12... d4 {[%clk
0:02:42.2]} 13. c4 {[%clk 0:02:29.2]} 13... Qc7 {[%clk 0:02:37.6]} 14. Qe2
{[%clk 0:02:27.5]} 14... f6 {[%clk 0:01:42.7]} 15. exf6 {[%clk 0:02:25.3]} 15...
Rxf6 {[%clk 0:01:43.6]} 16. N1h2 {[%clk 0:02:15.3]} 16... Raf8 {[%clk
0:01:27.5]} 17. Ng4 {[%clk 0:02:11.6]} 17... Rxf3 {[%clk 0:01:27.9]} 18. Bxf3
{[%clk 0:02:11.2]} 18... Rxf3 {[%clk 0:01:28.8]} 19. Qxf3 {[%clk 0:02:10.2]}
19... Ne5 {[%clk 0:01:28.4]} 20. Qf4 {[%clk 0:01:45.6]} 20... Nf3+ {[%clk
0:01:28.2]} 21. Kf1 {[%clk 0:01:45.1]} 21... e5 {[%clk 0:01:24.5]} 22. Nxh6+
{[%clk 0:01:39.1]} 22... Kh7 {[%clk 0:01:18.1]} 23. Qf7 {[%clk 0:01:27.1]} 23...
Qd7 {[%clk 0:01:16]} 24. Bg5 {[%clk 0:01:19]} 24... Nh2+ {[%clk 0:00:33.9]} 25.
Ke2 {[%clk 0:01:16.6]} 25... Qa4 {[%clk 0:00:34.2]} 26. b3 {[%clk 0:01:09.3]}
26... Bf3+ {[%clk 0:00:31.1]} 27. Kd2 {[%clk 0:01:02.1]} 27... Qb4+ {[%clk
0:00:27.9]} 28. Kc2 {[%clk 0:01:00.5]} 28... Qc3+ {[%clk 0:00:27.9]} 29. Kb1
{[%clk 0:01:00.5]} 29... Qxe1+ {[%clk 0:00:25.4]} 30. Kb2 {[%clk 0:00:57.7]}
30... Qc3+ {[%clk 0:00:24.2]} 31. Kb1 {[%clk 0:00:57.5]} 31... Qxd3+ {[%clk
0:00:23]} 32. Kb2 {[%clk 0:00:56.6]} 32... Qc3+ {[%clk 0:00:21.1]} 33. Ka3
{[%clk 0:00:56.7]} 33... Qb4+ {[%clk 0:00:16.8]} 34. Kb2 {[%clk 0:00:56.2]}
34... Qc3+ {[%clk 0:00:10.7]} 35. Ka3 {[%clk 0:00:55.8]} 35... Qxa1 {[%clk
0:00:10.1]} 36. Qxe7 {[%clk 0:00:53.9]} 36... Qc3 {[%clk 0:00:08.6]} 37. Qf7
{[%clk 0:00:48.1]} 37... d3 {[%clk 0:00:07.5]} 38. Qg8# {[%clk 0:00:47.2]} 1-0

[Event "Late-Titled-Tuesday-Blitz-May-07-2024"]
[Site "Chess.com"]
[Date "2024.05.07"]
[Round "3"]
[White "MKlose11"]
[Black "Chess_Star1234"]
[Result "1-0"]
[WhiteElo "2690"]
[BlackElo "2484"]
[TimeControl "180+1"]
[EndTime "14:27:49 PDT"]
[Termination "MKlose11 won by resignation"]

1. e4 {[%clk 0:02:55.3]} 1... e5 {[%clk 0:02:58.1]} 2. Nf3 {[%clk 0:02:54.6]}
2... Nc6 {[%clk 0:02:58.1]} 3. d4 {[%clk 0:02:55.5]} 3... exd4 {[%clk
0:02:58.3]} 4. Bc4 {[%clk 0:02:55.7]} 4... Bc5 {[%clk 0:02:58.7]} 5. Ng5 {[%clk
0:02:54.9]} 5... Nh6 {[%clk 0:02:58.6]} 6. Nxf7 {[%clk 0:02:55.1]} 6... Nxf7
{[%clk 0:02:59.5]} 7. Bxf7+ {[%clk 0:02:55.4]} 7... Kxf7 {[%clk 0:03:00.4]} 8.
Qh5+ {[%clk 0:02:55.6]} 8... g6 {[%clk 0:03:01]} 9. Qxc5 {[%clk 0:02:56.4]} 9...
d6 {[%clk 0:03:01.6]} 10. Qb5 {[%clk 0:02:56.6]} 10... Kg7 {[%clk 0:02:40]} 11.
O-O {[%clk 0:02:55]} 11... Qe7 {[%clk 0:02:25.3]} 12. Nd2 {[%clk 0:02:54.1]}
12... Qe5 {[%clk 0:02:15.9]} 13. Qd3 {[%clk 0:02:50.6]} 13... Be6 {[%clk
0:02:07.5]} 14. a3 {[%clk 0:02:44.6]} 14... d5 {[%clk 0:01:50.7]} 15. f4 {[%clk
0:02:39.8]} 15... dxe4 {[%clk 0:01:50.9]} 16. Nxe4 {[%clk 0:02:36.9]} 16... Qd5
{[%clk 0:01:42.6]} 17. Ng3 {[%clk 0:02:27.6]} 17... Bf5 {[%clk 0:01:33.1]} 18.
Nxf5+ {[%clk 0:02:27.1]} 18... Qxf5 {[%clk 0:01:34]} 19. Qxf5 {[%clk 0:02:16.7]}
19... gxf5 {[%clk 0:01:34.9]} 20. Bd2 {[%clk 0:02:15.7]} 20... Rhe8 {[%clk
0:01:29]} 21. Rf3 {[%clk 0:02:12.9]} 21... Re2 {[%clk 0:00:52.4]} 22. Rd1 {[%clk
0:02:11.9]} 22... Kf7 {[%clk 0:00:31.1]} 23. Kf1 {[%clk 0:02:11.4]} 23... Re6
{[%clk 0:00:24.4]} 24. Be1 {[%clk 0:01:57.7]} 24... Re4 {[%clk 0:00:16.4]} 25.
g3 {[%clk 0:01:52.2]} 25... h5 {[%clk 0:00:14.1]} 26. Rb3 {[%clk 0:01:48.5]}
26... b6 {[%clk 0:00:13.6]} 27. Bf2 {[%clk 0:01:46.9]} 27... Rd8 {[%clk
0:00:13.1]} 28. Rb5 {[%clk 0:01:45.3]} 28... Ke6 {[%clk 0:00:11.3]} 29. Rb3
{[%clk 0:01:42.1]} 29... Ne7 {[%clk 0:00:10]} 30. Rbd3 {[%clk 0:01:39.3]} 30...
c5 {[%clk 0:00:10.4]} 31. c3 {[%clk 0:01:35.5]} 31... Nc6 {[%clk 0:00:11]} 32.
b4 {[%clk 0:01:23.4]} 32... Rd5 {[%clk 0:00:07.6]} 33. cxd4 {[%clk 0:01:12.6]}
33... Nxd4 {[%clk 0:00:06.6]} 34. bxc5 {[%clk 0:01:11.1]} 34... bxc5 {[%clk
0:00:07.5]} 35. Rb1 {[%clk 0:01:07.3]} 35... Nc6 {[%clk 0:00:06]} 36. Rc3 {[%clk
0:01:04.4]} 36... Ra4 {[%clk 0:00:05.5]} 37. Bxc5 {[%clk 0:00:59.4]} 37... Nd4
{[%clk 0:00:02.9]} 38. Re1+ {[%clk 0:00:56.1]} 38... Kf6 {[%clk 0:00:03.1]} 39.
Rd1 {[%clk 0:00:54.4]} 39... Ke6 {[%clk 0:00:01.4]} 40. Rcd3 {[%clk 0:00:53.4]}
40... Rc4 {[%clk 0:00:01.4]} 41. Bxd4 {[%clk 0:00:51.6]} 1-0